lending/lending_fUSD_20241214
["ID","MTS","AMOUNT","RATE_DAILY","PERIOD"]
[345348593,1734169839872,-500.0,0.00021249,3]
[345348595,1734169839882,-500.0,0.00021249,3]
[345348597,1734169839891,-500.0,0.00021249,3]
[345348599,1734169839901,-500.0,0.00021249,3]
[345348601,1734169839910,-338.56,0.00021249,3]
[345348603,1734169839924,-500.0,0.00021249,3]
[345348605,1734169839933,-272.55668371,0.00021249,3]
[345348607,1734169839942,-500.0,0.00021249,3]
[345348609,1734169839956,-500.0,0.00021249,3]
[345348611,1734169839965,-500.0,0.00021249,3]
[345348613,1734169839974,-500.0,0.00021249,3]
[345348615,1734169839984,-500.0,0.00021249,3]
[345348617,1734169839993,-500.0,0.00021249,3]
[345348619,1734169840002,-500.0,0.00021249,3]
[345348621,1734169840011,-500.0,0.00021249,3]
[345348623,1734169840020,-500.0,0.00021249,3]
[345348625,1734169840029,-500.0,0.00021249,3]
[345348627,1734169840038,-639.24,0.00021249,3]
[345348629,1734169840046,-500.0,0.00021249,3]
[345348631,1734169840055,-500.0,0.00021249,3]
[345348633,1734169840064,-447.72,0.00021249,3]
[345348635,1734169840073,-200.65492439,0.00021249,3]
[345348638,1734169840082,-510.54507561,0.00021249,3]
[345348640,1734169840091,-500.0,0.00021249,3]
[345348642,1734169840100,-500.0,0.00021249,3]
[345348644,1734169840109,-336.29953339,0.00021249,3]
[345348646,1734169840119,-500.0,0.00021249,3]
[345348648,1734169840128,-500.0,0.00021249,3]
[345348650,1734169840137,-257.62,0.00021249,3]
[345348652,1734169840147,-500.0,0.00021249,3]
[345348654,1734169840157,-500.0,0.00021249,3]
[345348656,1734169840169,-500.0,0.00021249,3]
[345348658,1734169840179,-416.94,0.00021249,3]
[345348660,1734169840188,-500.0,0.00021249,3]
[345348662,1734169840197,-184.07,0.00021249,3]
[345348664,1734169840206,-500.0,0.00021249,3]
[345348666,1734169840215,-500.0,0.00021249,3]
[345348668,1734169840224,-500.0,0.00021249,3]
[345348670,1734169840234,-500.0,0.00021249,3]
[345348672,1734169840243,-500.0,0.00021249,3]
[345348674,1734169840253,-500.0,0.00021249,3]
[345348676,1734169840263,-500.0,0.00021249,3]
[345348678,1734169840273,-500.0,0.00021249,3]
[345348680,1734169840283,-500.0,0.00021249,3]
[345348682,1734169840292,-516.32835632,0.00021249,3]
[345348684,1734169840301,-500.0,0.00021249,3]
[345348686,1734169840311,-166.98,0.00021249,3]
[345348688,1734169840320,-500.0,0.00021249,3]
[345348690,1734169840329,-500.0,0.00021249,3]
[345348692,1734169840338,-500.0,0.00021249,3]
[345348694,1734169840347,-500.0,0.00021249,3]
[345348696,1734169840356,-474.67,0.00021249,3]
[345348698,1734169840366,-500.0,0.00021249,3]
[345348701,1734169840375,-207.97164642,0.00021249,3]
[345348703,1734169840385,-500.0,0.00021249,3]
[345348705,1734169840394,-500.0,0.00021249,3]
[345348706,1734169840403,-500.0,0.00021249,3]
[345348707,1734169840413,-500.0,0.00021249,3]
[345348708,1734169840423,-500.0,0.00021249,3]
[345348709,1734169840432,-500.0,0.00021249,3]
[345348710,1734169840441,-500.0,0.00021249,3]
[345348711,1734169840450,-500.0,0.00021249,3]
[345348712,1734169840459,-500.0,0.00021249,3]
[345348713,1734169840468,-351.56,0.00021249,3]
[345348714,1734169840478,-500.0,0.00021249,3]
[345348715,1734169840487,-500.0,0.00021249,3]
[345348716,1734169840497,-500.0,0.00021249,3]
[345348717,1734169840505,-500.0,0.00021249,3]
[345348718,1734169840514,-320.7,0.00021249,3]
[345348719,1734169840524,-609.80643876,0.00021249,3]
[345348720,1734169840533,-500.0,0.00021249,3]
[345348721,1734169840542,-500.0,0.00021249,3]
[345348722,1734169840551,-257.7725316,0.00021249,3]
[345348723,1734169840560,-500.0,0.00021249,3]
[345348724,1734169840570,-500.0,0.00021249,3]
[345348725,1734169840579,-500.0,0.00021249,3]
[345348726,1734169840588,-500.0,0.00021249,3]
[345348727,1734169840597,-500.0,0.00021249,3]
[345348728,1734169840607,-500.0,0.00021249,3]
[345348729,1734169840616,-500.0,0.00021249,3]
[345348730,1734169840625,-500.0,0.00021249,3]
[345348731,1734169840635,-500.0,0.00021249,3]
[345348732,1734169840644,-500.0,0.00021249,3]
[345348733,1734169840653,-500.0,0.00021249,3]
[345348734,1734169840663,-500.0,0.00021249,3]
[345348736,1734169840675,-500.0,0.00021249,3]
[345348737,1734169840685,-500.0,0.00021249,3]
[345348738,1734169840693,-500.0,0.00021249,3]
[345348739,1734169840701,-466.45,0.00021249,3]
[345348740,1734169840711,-500.0,0.00021249,3]
[345348741,1734169840720,-500.0,0.00021249,3]
[345348742,1734169840729,-500.0,0.00021249,3]
[345348743,1734169840738,-500.0,0.00021249,3]
[345348744,1734169840751,-500.0,0.00021249,3]
[345348745,1734169840761,-500.0,0.00021249,3]
[345348746,1734169840771,-500.0,0.00021249,3]
[345348747,1734169840782,-500.0,0.00021249,3]
[345348748,1734169840791,-370.09,0.00021249,3]
[345348749,1734169840800,-500.0,0.00021249,3]
[345348750,1734169840810,-500.0,0.00021249,3]
[345348751,1734169840820,-500.0,0.00021249,3]
[345348752,1734169840830,-500.0,0.00021249,3]
[345348753,1734169840839,-500.0,0.00021249,3]
[345348754,1734169840849,-1010.83,0.00021249,2]
[345348755,1734169840858,-160905.03454297,0.0002125,4]
[345348756,1734169840868,-4633.6645752,0.0002125,2]
[345348757,1734169840878,-6283.1812228,0.0002125,2]
[345348758,1734169840887,-725.0,0.0002125,2]
[345348759,1734169840896,-212807.0,0.0002125,2]
[345348760,1734169840906,-15222013.01224898,0.0002125,2]
[345348761,1734169840919,-16119.28113636,0.0002125,2]
[345348762,1734169840929,-1097861.80264689,0.0002125,2]
[345348763,1734169841049,500.0,0.00017414,2]
[345348764,1734169841153,-0.00016762,0.0002125,2]
[345348765,1734169841186,-12234.25506287,0.0002125,2]
[345348766,1734169841202,-1770.16690187,0.0002125,2]
[345348954,1734169846087,-500.0,0.00019606,2]
[345348955,1734169846097,-662.0,0.0002125,2]
[345348956,1734169846107,-1476.18134245,0.0002125,2]
[345348957,1734169846268,-1672.34081906,0.0002125,2]
[345348958,1734169846279,-409.3,0.0002125,2]
[345348959,1734169846309,-3000.0,0.0002125,2]
[345348960,1734169846370,-82245.86102295,0.0002125,2]
[345348963,1734169921761,153.96,0.00010137,2]
[345348964,1734169922286,153.96,0.00018594,2]
[345348966,1734170045268,224.53,0.00013699,2]
[345348967,1734170220262,-3174.51791867,0.0001553,2]
[345348968,1734170354649,-5550.0,0.000159,5]
[345348969,1734170362917,450.0,0.00013,2]
[345348970,1734170364010,500.0,0.00015,2]
[345348971,1734170801189,-168.54,0.00016225,2]
[345348972,1734170801208,-166.66666667,0.00016499,2]
[345348973,1734170801228,-1500.48689197,0.00016599,2]
[345348974,1734170801248,-724.29302631,0.000166,2]
[345348975,1734170846095,-6977.02638338,0.000167,5]
[345348976,1734170894640,168.54,0.00015391,2]
[345348977,1734170950120,-7042.23361662,0.000167,5]
[345348978,1734170950142,-2276.68075761,0.000169,2]
[345348979,1734170950164,-550.0,0.00017,2]
[345348980,1734170950184,-666.76,0.00018064,2]
[345348981,1734170950206,-600.0,0.00019,2]
[345348982,1734170950228,-172.87434063,0.00019107,2]
[345348985,1734171032335,-150.0,0.00019178,2]
[345348986,1734171032345,-249.28,0.00019235,2]
[345348987,1734171032354,-430.06,0.00019269,2]
[345348988,1734171032363,-250.0,0.00019311,2]
[345348989,1734171032372,-320.0,0.00019345,2]
[345348990,1734171032382,-3214.38,0.0001938,2]
[345348991,1734171032391,-150.0,0.0001938,2]
[345348992,1734171032400,-200.0,0.00019384,2]
[345348993,1734171032409,-1000.0,0.00019398,2]
[345348994,1734171032419,-300.0,0.0001991,2]
[345348995,1734171032428,-469.43,0.00019911,2]
[345348996,1734171032437,-469.43,0.00019917,2]
[345348997,1734171032446,-469.43,0.00019922,2]
[345348998,1734171032456,-469.43,0.00019927,2]
[345348999,1734171032465,-469.43,0.00019932,2]
[345349000,1734171032474,-469.43,0.00019937,2]
[345349001,1734171032483,-469.43,0.00019943,2]
[345349002,1734171032492,-469.43,0.00019948,2]
[345349003,1734171032501,-469.43,0.00019953,2]
[345349004,1734171032511,-162.0,0.00019958,2]
[345349005,1734171032519,-287.77757739,0.00019958,2]
[345349006,1734171032531,-181.65242261,0.00019958,2]
[345349007,1734171032541,-469.43,0.00019964,2]
[345349008,1734171032550,-118.76737109,0.00019969,2]
[345349009,1734171032561,-264.72889309,0.00019969,2]
[345349010,1734171032571,-85.93373582,0.00019969,2]
[345349011,1734171032580,-469.43,0.00019974,2]
[345349012,1734171032589,-469.43,0.00019979,2]
[345349013,1734171032602,-469.43,0.00019985,2]
[345349014,1734171032611,-469.43,0.0001999,2]
[345349015,1734171032620,-469.43,0.00019995,2]
[345349016,1734171032630,-500.0,0.0002,3]
[345349017,1734171032639,-469.43,0.0002,2]
[345349018,1734171032648,-469.43,0.00020005,2]
[345349019,1734171032658,-469.43,0.00020011,2]
[345349020,1734171032666,-320.0,0.00020061,2]
[345349021,1734171032675,-1383.2,0.00020122,2]
[345349022,1734171032684,-501.0,0.00020164,2]
[345349024,1734171032694,-256.702,0.0002019,2]
[345349026,1734171032703,-250.0,0.000202,2]
[345349028,1734171032712,-666.76,0.00020328,2]
[345349029,1734171032721,-515.8,0.000204,2]
[345349030,1734171032730,-1277.0,0.000205,2]
[345349031,1734171032739,-988.0,0.0002057,2]
[345349032,1734171032748,-150.0,0.00020696,2]
[345349033,1734171032758,-320.0,0.00020776,2]
[345349034,1734171032767,-1121.26307237,0.00020825,2]
[345349035,1734171032776,-1053.56383128,0.00020825,2]
[345349036,1734171032787,-1083.13376152,0.00020825,2]
[345349037,1734171032796,-237.84758431,0.00020894,2]
[345349039,1734171032806,-237.84758431,0.00020898,2]
[345349041,1734171032815,-237.84758431,0.00020902,2]
[345349043,1734171032824,-237.84758431,0.0002091,2]
[345349045,1734171032833,-237.84758431,0.00020941,2]
[345349047,1734171032842,-463.167,0.00020995,2]
[345349049,1734171032851,-500.0,0.00021,3]
[345349051,1734171032861,-650.0,0.00021,2]
[345349052,1734171032870,-150.0,0.00021036,2]
[345349054,1734171032883,-13723.0,0.00021036,2]
[345349057,1734171032892,-1722.62549,0.0002104,2]
[345349060,1734171032901,-2000.0,0.0002108,2]
[345349062,1734171032910,-500.0,0.0002108,2]
[345349064,1734171032921,-1367.19097839,0.000211,2]
[345349066,1734171032933,-1132.80902161,0.000211,2]
[345349068,1734171032942,-200.14938265,0.00021144,2]
[345349070,1734171032951,-800.0,0.00021151,2]
[345349072,1734171032961,-500.0,0.00021199,3]
[345349074,1734171032970,-500.0,0.00021199,3]
[345349076,1734171032979,-500.0,0.00021199,3]
[345349078,1734171032988,-500.0,0.00021199,3]
[345349080,1734171032997,-500.0,0.00021199,3]
[345349082,1734171033007,-500.0,0.00021199,3]
[345349084,1734171033016,-500.0,0.00021199,3]
[345349086,1734171033025,-500.0,0.00021199,3]
[345349088,1734171033036,-561.97953339,0.00021199,3]
[345349090,1734171033045,-500.0,0.00021199,3]
[345349092,1734171033055,-500.0,0.00021199,3]
[345349094,1734171033064,-500.0,0.00021199,3]
[345349096,1734171033073,-500.0,0.00021199,3]
[345349098,1734171033083,-500.0,0.00021199,3]
[345349100,1734171033092,-500.0,0.00021199,3]
[345349102,1734171033102,-500.0,0.00021199,3]
[345349103,1734171033111,-500.0,0.00021199,3]
[345349105,1734171033121,-500.0,0.00021199,3]
[345349108,1734171033131,-500.0,0.00021199,3]
[345349110,1734171033140,-500.0,0.00021199,3]
[345349111,1734171033150,-500.0,0.00021199,3]
[345349114,1734171033160,-184.07,0.00021199,3]
[345349116,1734171033169,-500.0,0.00021199,3]
[345349117,1734171033178,-500.0,0.00021199,3]
[345349119,1734171033188,-500.0,0.00021199,3]
[345349121,1734171033197,-500.0,0.00021199,3]
[345349123,1734171033206,-500.0,0.00021199,3]
[345349125,1734171033215,-500.0,0.00021199,3]
[345349127,1734171033225,-500.0,0.00021199,3]
[345349129,1734171033234,-500.0,0.00021199,3]
[345349131,1734171033244,-500.0,0.00021199,3]
[345349133,1734171033254,-500.0,0.00021199,3]
[345349135,1734171033263,-166.98,0.00021199,3]
[345349137,1734171033272,-500.0,0.00021199,3]
[345349139,1734171033281,-281.75,0.00021199,3]
[345349141,1734171033292,-500.0,0.00021199,3]
[345349143,1734171033301,-184.44170691,0.00021199,3]
[345349145,1734171033312,-500.0,0.00021199,3]
[345349147,1734171033321,-500.0,0.00021199,3]
[345349149,1734171033331,-500.0,0.00021199,3]
[345349151,1734171033341,-500.0,0.00021199,3]
[345349153,1734171033350,-500.0,0.00021199,3]
[345349155,1734171033359,-500.0,0.00021199,3]
[345349157,1734171033368,-500.0,0.00021199,3]
[345349159,1734171033378,-159.85,0.00021199,3]
[345349161,1734171033387,-433.56,0.00021199,3]
[345349163,1734171033396,-500.0,0.00021199,3]
[345349165,1734171033405,-293.36,0.000212,2]
[345349167,1734171033414,-2000.0,0.000212,2]
[345349169,1734171033425,-10481.45035544,0.000212,10]
[345349172,1734171033444,-36816.10278196,0.000212,10]
[345349175,1734171033455,-4871.65332767,0.000212,10]
[345349177,1734171033466,-7791.6,0.000212,10]
[345349355,1734171038415,-1940040.1935339,0.000212,10]
[345349356,1734171038425,-492.0,0.000212,9]
[345349357,1734171038434,-2000.0,0.0002121,2]
[345349358,1734171038444,-220.0,0.00021215,2]
[345349359,1734171038454,-3525.175058,0.0002122,2]
[345349360,1734171038463,-516.32835632,0.00021248,3]
[345349361,1734171038472,-500.0,0.00021248,3]
[345349362,1734171038482,-1000.0,0.00021249,2]
[345349363,1734171038491,-2000.0,0.00021249,2]
[345349364,1734171038501,-500.0,0.00021249,3]
[345349365,1734171038510,-500.0,0.00021249,3]
[345349366,1734171038519,-500.0,0.00021249,3]
[345349367,1734171038528,-500.0,0.00021249,3]
[345349368,1734171038540,-500.0,0.00021249,3]
[345349369,1734171038549,-500.0,0.00021249,3]
[345349370,1734171038565,-500.0,0.00021249,3]
[345349371,1734171038574,-500.0,0.00021249,3]
[345349372,1734171038583,-216.8,0.00021249,3]
[345349373,1734171038592,-500.0,0.00021249,3]
[345349374,1734171038601,-500.0,0.00021249,3]
[345349375,1734171038610,-500.0,0.00021249,3]
[345349376,1734171038619,-500.0,0.00021249,3]
[345349377,1734171038628,-500.0,0.00021249,3]
[345349378,1734171038637,-500.0,0.00021249,3]
[345349379,1734171038646,-500.0,0.00021249,3]
[345349380,1734171038655,-500.0,0.00021249,3]
[345349381,1734171038665,-559.29041351,0.00021249,3]
[345349382,1734171038674,-243.58520973,0.00021249,3]
[345349383,1734171038683,-500.0,0.00021249,3]
[345349384,1734171038692,-500.0,0.00021249,3]
[345349385,1734171038702,-500.0,0.00021249,3]
[345349386,1734171038711,-500.0,0.00021249,3]
[345349387,1734171038720,-500.0,0.00021249,3]
[345349388,1734171038729,-500.0,0.00021249,3]
[345349389,1734171038738,-500.0,0.00021249,3]
[345349390,1734171038746,-500.0,0.00021249,3]
[345349391,1734171038755,-500.0,0.00021249,3]
[345349392,1734171038764,-500.0,0.00021249,3]
[345349393,1734171038773,-500.0,0.00021249,3]
[345349394,1734171038782,-500.0,0.00021249,3]
[345349395,1734171038795,-500.0,0.00021249,3]
[345349396,1734171038804,-500.0,0.00021249,3]
[345349397,1734171038812,-500.0,0.00021249,3]
[345349398,1734171038822,-500.0,0.00021249,3]
[345349399,1734171038831,-500.0,0.00021249,3]
[345349400,1734171038840,-628.92,0.00021249,3]
[345349401,1734171038849,-500.0,0.00021249,3]
[345349402,1734171038859,-500.0,0.00021249,3]
[345349403,1734171038868,-625.43019301,0.00021249,3]
[345349404,1734171038880,-500.0,0.00021249,3]
[345349405,1734171038889,-500.0,0.00021249,3]
[345349406,1734171038899,-500.0,0.00021249,3]
[345349407,1734171038908,-500.0,0.00021249,3]
[345349408,1734171038919,-500.0,0.00021249,3]
[345349409,1734171038928,-500.0,0.00021249,3]
[345349410,1734171038937,-500.0,0.00021249,3]
[345349411,1734171038946,-500.0,0.00021249,3]
[345349412,1734171038957,-592.78,0.00021249,3]
[345349413,1734171038967,-462.82,0.00021249,3]
[345349414,1734171038976,-521.65342929,0.00021249,3]
[345349415,1734171038985,-500.0,0.00021249,3]
[345349417,1734171038995,-257.7725316,0.00021249,3]
[345349419,1734171039004,-530.21,0.00021249,3]
[345349420,1734171039014,-640.26545292,0.00021249,3]
[345349421,1734171039023,-382.83588906,0.00021249,3]
[345349422,1734171039032,-500.0,0.00021249,3]
[345349423,1734171039044,-500.0,0.00021249,3]
[345349424,1734171039053,-500.0,0.00021249,3]
[345349425,1734171039063,-500.0,0.00021249,3]
[345349426,1734171039072,-500.0,0.00021249,3]
[345349427,1734171039081,-500.0,0.00021249,3]
[345349428,1734171039090,-500.0,0.00021249,3]
[345349429,1734171039099,-500.0,0.00021249,3]
[345349430,1734171039108,-500.0,0.00021249,3]
[345349431,1734171039117,-500.0,0.00021249,3]
[345349432,1734171039127,-500.0,0.00021249,3]
[345349433,1734171039136,-500.0,0.00021249,3]
[345349434,1734171039145,-500.0,0.00021249,3]
[345349435,1734171039154,-500.0,0.00021249,3]
[345349436,1734171039163,-500.0,0.00021249,3]
[345349437,1734171039173,-500.0,0.00021249,3]
[345349438,1734171039182,-500.0,0.00021249,3]
[345349439,1734171039191,-500.0,0.00021249,3]
[345349440,1734171039200,-500.0,0.00021249,3]
[345349441,1734171039209,-500.0,0.00021249,3]
[345349442,1734171039218,-500.0,0.00021249,3]
[345349443,1734171039226,-500.0,0.00021249,3]
[345349444,1734171039235,-466.45,0.00021249,3]
[345349445,1734171039244,-500.0,0.00021249,3]
[345349446,1734171039254,-500.0,0.00021249,3]
[345349447,1734171039263,-500.0,0.00021249,3]
[345349448,1734171039272,-500.0,0.00021249,3]
[345349449,1734171039281,-500.0,0.00021249,3]
[345349450,1734171039293,-500.0,0.00021249,3]
[345349451,1734171039302,-500.0,0.00021249,3]
[345349452,1734171039311,-500.0,0.00021249,3]
[345349453,1734171039320,-370.09,0.00021249,3]
[345349454,1734171039329,-500.0,0.00021249,3]
[345349455,1734171039339,-500.0,0.00021249,3]
[345349456,1734171039467,-500.0,0.00021249,3]
[345349457,1734171039476,-500.0,0.00021249,3]
[345349458,1734171039486,-500.0,0.00021249,3]
[345349459,1734171039495,-500.0,0.00021249,3]
[345349460,1734171039504,-500.0,0.00021249,3]
[345349461,1734171039513,-500.0,0.00021249,3]
[345349462,1734171039522,-500.0,0.00021249,3]
[345349463,1734171039531,-193.64,0.00021249,3]
[345349464,1734171039540,-500.0,0.00021249,3]
[345349465,1734171039549,-500.0,0.00021249,3]
[345349466,1734171039559,-626.79,0.00021249,2]
[345349467,1734171039568,-500.0,0.00021249,3]
[345349468,1734171039577,-500.0,0.00021249,3]
[345349469,1734171039586,-500.0,0.00021249,3]
[345349470,1734171039595,-500.0,0.00021249,3]
[345349471,1734171039604,-500.0,0.00021249,3]
[345349472,1734171039613,-500.0,0.00021249,3]
[345349473,1734171039622,-500.0,0.00021249,3]
[345349474,1734171039631,-622.86,0.00021249,3]
[345349475,1734171039640,-524.11,0.00021249,3]
[345349476,1734171039649,-500.0,0.00021249,3]
[345349477,1734171039659,-500.0,0.00021249,3]
[345349478,1734171039668,-172.2,0.00021249,3]
[345349479,1734171039678,-224.07,0.00021249,3]
[345349480,1734171039687,-500.0,0.00021249,3]
[345349481,1734171039696,-500.0,0.00021249,3]
[345349482,1734171039706,-500.0,0.00021249,3]
[345349483,1734171039715,-500.0,0.00021249,3]
[345349484,1734171039724,-500.0,0.00021249,3]
[345349485,1734171039733,-500.0,0.00021249,3]
[345349486,1734171039742,-500.0,0.00021249,3]
[345349487,1734171039751,-500.0,0.00021249,3]
[345349488,1734171039760,-479.63,0.00021249,3]
[345349489,1734171039770,-200.0,0.00021249,3]
[345349490,1734171039778,-200.0,0.00021249,3]
[345349491,1734171039790,-200.0,0.00021249,3]
[345349492,1734171039799,-200.0,0.00021249,3]
[345349493,1734171039808,-200.0,0.00021249,3]
[345349494,1734171039817,-236.30391347,0.00021249,3]
[345349495,1734171039826,-500.0,0.00021249,3]
[345349496,1734171039835,-500.0,0.00021249,3]
[345349497,1734171039844,-500.0,0.00021249,3]
[345349498,1734171039853,-500.0,0.00021249,3]
[345349499,1734171039862,-500.0,0.00021249,3]
[345349500,1734171039871,-500.0,0.00021249,3]
[345349501,1734171039884,-500.0,0.00021249,2]
[345349502,1734171039894,-500.0,0.00021249,3]
[345349503,1734171039903,-196.94,0.00021249,3]
[345349504,1734171039911,-500.0,0.00021249,3]
[345349505,1734171039921,-634.28,0.00021249,3]
[345349506,1734171039932,-500.0,0.00021249,3]
[345349507,1734171039941,-283.03593546,0.00021249,3]
[345349508,1734171039951,-500.0,0.00021249,3]
[345349509,1734171039960,-500.0,0.00021249,3]
[345349510,1734171039969,-649.44,0.00021249,3]
[345349511,1734171039978,-500.0,0.00021249,3]
[345349512,1734171039987,-500.0,0.00021249,3]
[345349513,1734171039996,-500.0,0.00021249,3]
[345349514,1734171040005,-500.0,0.00021249,3]
[345349515,1734171040014,-500.0,0.00021249,3]
[345349516,1734171040023,-500.0,0.00021249,3]
[345349517,1734171040032,-500.0,0.00021249,3]
[345349518,1734171040043,-500.0,0.00021249,3]
[345349519,1734171040052,-500.0,0.00021249,3]
[345349520,1734171040061,-500.0,0.00021249,3]
[345349521,1734171040071,-500.0,0.00021249,3]
[345349522,1734171040080,-500.0,0.00021249,3]
[345349523,1734171040089,-500.0,0.00021249,3]
[345349525,1734171040098,-500.0,0.00021249,3]
[345349526,1734171040107,-500.0,0.00021249,3]
[345349527,1734171040116,-500.0,0.00021249,3]
[345349528,1734171040125,-500.0,0.00021249,3]
[345349529,1734171040134,-500.0,0.00021249,3]
[345349530,1734171040143,-500.0,0.00021249,3]
[345349531,1734171040152,-500.0,0.00021249,3]
[345349532,1734171040164,-500.0,0.00021249,3]
[345349533,1734171040173,-500.0,0.00021249,3]
[345349534,1734171040182,-339.56,0.00021249,3]
[345349535,1734171040191,-500.0,0.00021249,3]
[345349536,1734171040200,-500.0,0.00021249,3]
[345349538,1734171040209,-500.0,0.00021249,3]
[345349541,1734171040218,-500.0,0.00021249,3]
[345349542,1734171040227,-500.0,0.00021249,3]
[345349544,1734171040236,-186.56,0.00021249,3]
[345349545,1734171040245,-500.0,0.00021249,3]
[345349546,1734171040254,-500.0,0.00021249,3]
[345349547,1734171040264,-500.0,0.00021249,3]
[345349548,1734171040273,-500.0,0.00021249,3]
[345349550,1734171040282,-500.0,0.00021249,3]
[345349551,1734171040294,-500.0,0.00021249,3]
[345349553,1734171040303,-339.2,0.00021249,3]
[345349555,1734171040312,-500.0,0.00021249,3]
[345349557,1734171040321,-451.72,0.00021249,3]
[345349559,1734171040330,-500.0,0.00021249,3]
[345349561,1734171040339,-500.0,0.00021249,3]
[345349563,1734171040348,-500.0,0.00021249,3]
[345349565,1734171040357,-500.0,0.00021249,3]
[345349567,1734171040367,-500.0,0.00021249,3]
[345349569,1734171040375,-500.0,0.00021249,3]
[345349570,1734171040384,-577.56,0.00021249,3]
[345349572,1734171040393,-500.0,0.00021249,3]
[345349574,1734171040403,-500.0,0.00021249,3]
[345349576,1734171040412,-500.0,0.00021249,3]
[345349578,1734171040421,-500.0,0.00021249,3]
[345349580,1734171040430,-406.2,0.00021249,3]
[345349582,1734171040439,-500.0,0.00021249,3]
[345349584,1734171040448,-359.8,0.00021249,3]
[345349586,1734171040457,-500.0,0.00021249,3]
[345349587,1734171040467,-250.74,0.00021249,3]
[345349588,1734171040475,-500.0,0.00021249,3]
[345349589,1734171040484,-500.0,0.00021249,3]
[345349590,1734171040493,-631.81889266,0.00021249,3]
[345349591,1734171040502,-500.0,0.00021249,3]
[345349592,1734171040511,-500.0,0.00021249,3]
[345349593,1734171040521,-500.0,0.00021249,3]
[345349594,1734171040530,-500.0,0.00021249,3]
[345349595,1734171040541,-500.0,0.00021249,3]
[345349596,1734171040550,-373.05,0.00021249,3]
[345349597,1734171040559,-500.0,0.00021249,3]
[345349598,1734171040568,-249.86,0.00021249,3]
[345349599,1734171040579,-500.0,0.00021249,3]
[345349600,1734171040589,-500.0,0.00021249,3]
[345349601,1734171040598,-500.0,0.00021249,3]
[345349602,1734171040607,-533.32,0.00021249,3]
[345349603,1734171040617,-500.0,0.00021249,3]
[345349604,1734171040626,-500.0,0.00021249,3]
[345349605,1734171040635,-500.0,0.00021249,3]
[345349606,1734171040644,-500.0,0.00021249,3]
[345349607,1734171040653,-500.0,0.00021249,3]
[345349608,1734171040662,-500.0,0.00021249,3]
[345349609,1734171040671,-500.0,0.00021249,3]
[345349610,1734171040680,-151.32,0.00021249,3]
[345349611,1734171040689,-500.0,0.00021249,3]
[345349613,1734171040698,-500.0,0.00021249,3]
[345349614,1734171040707,-500.0,0.00021249,3]
[345349615,1734171040716,-500.0,0.00021249,3]
[345349616,1734171040725,-500.0,0.00021249,3]
[345349617,1734171040735,-500.0,0.00021249,3]
[345349618,1734171040744,-500.0,0.00021249,3]
[345349619,1734171040752,-500.0,0.00021249,3]